{"text_format":"3","workbook":"xlsx","n_sheets":4,"sheets":["EVENEMENTEN","AGENDA","AFDRUKBARE VERSIE","BEHEERDER"],"not_rendered":{"defined_names":18},"read":"whole","date_system":"1900"}

{"sheet":"EVENEMENTEN","index":0,"n_rows":38,"n_cols":5,"rows_kept":38}
[]
[null,"MAANDELIJKSE EVENEMENTENPLANNER"]
[null,"VOOR DE GEMEENSCHAP"]
[]
[]
[]
[]
[null,"DATUM","DAG","MAAND","NAAM VAN EVENEMENT"]
[null,"2016-07-01",{"$f":"IF(ISBLANK(tblEvenementen[[#This Row],[DATUM]]),\"\",UPPER(TEXT(tblEvenementen[[#This Row],[DATUM]],\"ddd\")))","v":"VR"},{"$f":"IF(ISBLANK(tblEvenementen[[#This Row],[DATUM]]),\"\",UPPER(TEXT(tblEvenementen[[#This Row],[DATUM]],\"mmm\")))","v":"JUL"},"Gemeenschapstuin"]
[null,"2016-07-01",{"$f":"IF(ISBLANK(tblEvenementen[[#This Row],[DATUM]]),\"\",UPPER(TEXT(tblEvenementen[[#This Row],[DATUM]],\"ddd\")))","v":"VR"},{"$f":"IF(ISBLANK(tblEvenementen[[#This Row],[DATUM]]),\"\",UPPER(TEXT(tblEvenementen[[#This Row],[DATUM]],\"mmm\")))","v":"JUL"},"Gemeenteraad"]
[null,"2016-07-02",{"$f":"IF(ISBLANK(tblEvenementen[[#This Row],[DATUM]]),\"\",UPPER(TEXT(tblEvenementen[[#This Row],[DATUM]],\"ddd\")))","v":"ZA"},{"$f":"IF(ISBLANK(tblEvenementen[[#This Row],[DATUM]]),\"\",UPPER(TEXT(tblEvenementen[[#This Row],[DATUM]],\"mmm\")))","v":"JUL"},"Gemeenschapstuin"]
[null,"2016-07-03",{"$f":"IF(ISBLANK(tblEvenementen[[#This Row],[DATUM]]),\"\",UPPER(TEXT(tblEvenementen[[#This Row],[DATUM]],\"ddd\")))","v":"ZO"},{"$f":"IF(ISBLANK(tblEvenementen[[#This Row],[DATUM]]),\"\",UPPER(TEXT(tblEvenementen[[#This Row],[DATUM]],\"mmm\")))","v":"JUL"},"Filmavond in het park"]
[null,"2016-07-08",{"$f":"IF(ISBLANK(tblEvenementen[[#This Row],[DATUM]]),\"\",UPPER(TEXT(tblEvenementen[[#This Row],[DATUM]],\"ddd\")))","v":"VR"},{"$f":"IF(ISBLANK(tblEvenementen[[#This Row],[DATUM]]),\"\",UPPER(TEXT(tblEvenementen[[#This Row],[DATUM]],\"mmm\")))","v":"JUL"},"Gemeenteraad"]
[null,"2016-07-11",{"$f":"IF(ISBLANK(tblEvenementen[[#This Row],[DATUM]]),\"\",UPPER(TEXT(tblEvenementen[[#This Row],[DATUM]],\"ddd\")))","v":"MA"},{"$f":"IF(ISBLANK(tblEvenementen[[#This Row],[DATUM]]),\"\",UPPER(TEXT(tblEvenementen[[#This Row],[DATUM]],\"mmm\")))","v":"JUL"},"Kamer van koophandel Lunch"]
[null,"2016-07-12",{"$f":"IF(ISBLANK(tblEvenementen[[#This Row],[DATUM]]),\"\",UPPER(TEXT(tblEvenementen[[#This Row],[DATUM]],\"ddd\")))","v":"DI"},{"$f":"IF(ISBLANK(tblEvenementen[[#This Row],[DATUM]]),\"\",UPPER(TEXT(tblEvenementen[[#This Row],[DATUM]],\"mmm\")))","v":"JUL"},"Antiekshow"]
[null,"2016-07-14",{"$f":"IF(ISBLANK(tblEvenementen[[#This Row],[DATUM]]),\"\",UPPER(TEXT(tblEvenementen[[#This Row],[DATUM]],\"ddd\")))","v":"DO"},{"$f":"IF(ISBLANK(tblEvenementen[[#This Row],[DATUM]]),\"\",UPPER(TEXT(tblEvenementen[[#This Row],[DATUM]],\"mmm\")))","v":"JUL"},"Gemeenschapsworkshop"]
[null,"2016-07-15",{"$f":"IF(ISBLANK(tblEvenementen[[#This Row],[DATUM]]),\"\",UPPER(TEXT(tblEvenementen[[#This Row],[DATUM]],\"ddd\")))","v":"VR"},{"$f":"IF(ISBLANK(tblEvenementen[[#This Row],[DATUM]]),\"\",UPPER(TEXT(tblEvenementen[[#This Row],[DATUM]],\"mmm\")))","v":"JUL"},"Gemeenteraad"]
[null,"2016-07-19",{"$f":"IF(ISBLANK(tblEvenementen[[#This Row],[DATUM]]),\"\",UPPER(TEXT(tblEvenementen[[#This Row],[DATUM]],\"ddd\")))","v":"DI"},{"$f":"IF(ISBLANK(tblEvenementen[[#This Row],[DATUM]]),\"\",UPPER(TEXT(tblEvenementen[[#This Row],[DATUM]],\"mmm\")))","v":"JUL"},"Workshop voor strategische planning"]
[null,"2016-07-20",{"$f":"IF(ISBLANK(tblEvenementen[[#This Row],[DATUM]]),\"\",UPPER(TEXT(tblEvenementen[[#This Row],[DATUM]],\"ddd\")))","v":"WO"},{"$f":"IF(ISBLANK(tblEvenementen[[#This Row],[DATUM]]),\"\",UPPER(TEXT(tblEvenementen[[#This Row],[DATUM]],\"mmm\")))","v":"JUL"},"Park opruimen"]
[null,"2016-07-22",{"$f":"IF(ISBLANK(tblEvenementen[[#This Row],[DATUM]]),\"\",UPPER(TEXT(tblEvenementen[[#This Row],[DATUM]],\"ddd\")))","v":"VR"},{"$f":"IF(ISBLANK(tblEvenementen[[#This Row],[DATUM]]),\"\",UPPER(TEXT(tblEvenementen[[#This Row],[DATUM]],\"mmm\")))","v":"JUL"},"Gemeenteraad"]
[null,"2016-07-26",{"$f":"IF(ISBLANK(tblEvenementen[[#This Row],[DATUM]]),\"\",UPPER(TEXT(tblEvenementen[[#This Row],[DATUM]],\"ddd\")))","v":"DI"},{"$f":"IF(ISBLANK(tblEvenementen[[#This Row],[DATUM]]),\"\",UPPER(TEXT(tblEvenementen[[#This Row],[DATUM]],\"mmm\")))","v":"JUL"},"Stadswandeling"]
[null,"2016-07-26",{"$f":"IF(ISBLANK(tblEvenementen[[#This Row],[DATUM]]),\"\",UPPER(TEXT(tblEvenementen[[#This Row],[DATUM]],\"ddd\")))","v":"DI"},{"$f":"IF(ISBLANK(tblEvenementen[[#This Row],[DATUM]]),\"\",UPPER(TEXT(tblEvenementen[[#This Row],[DATUM]],\"mmm\")))","v":"JUL"},"Kroegentocht"]
[null,"2016-07-29",{"$f":"IF(ISBLANK(tblEvenementen[[#This Row],[DATUM]]),\"\",UPPER(TEXT(tblEvenementen[[#This Row],[DATUM]],\"ddd\")))","v":"VR"},{"$f":"IF(ISBLANK(tblEvenementen[[#This Row],[DATUM]]),\"\",UPPER(TEXT(tblEvenementen[[#This Row],[DATUM]],\"mmm\")))","v":"JUL"},"Gemeenteraad"]
[null,"2016-08-05",{"$f":"IF(ISBLANK(tblEvenementen[[#This Row],[DATUM]]),\"\",UPPER(TEXT(tblEvenementen[[#This Row],[DATUM]],\"ddd\")))","v":"VR"},{"$f":"IF(ISBLANK(tblEvenementen[[#This Row],[DATUM]]),\"\",UPPER(TEXT(tblEvenementen[[#This Row],[DATUM]],\"mmm\")))","v":"AUG"},"Gemeenteraad"]
[null,"2016-08-10",{"$f":"IF(ISBLANK(tblEvenementen[[#This Row],[DATUM]]),\"\",UPPER(TEXT(tblEvenementen[[#This Row],[DATUM]],\"ddd\")))","v":"WO"},{"$f":"IF(ISBLANK(tblEvenementen[[#This Row],[DATUM]]),\"\",UPPER(TEXT(tblEvenementen[[#This Row],[DATUM]],\"mmm\")))","v":"AUG"},"Park opruimen"]
[null,"2016-08-12",{"$f":"IF(ISBLANK(tblEvenementen[[#This Row],[DATUM]]),\"\",UPPER(TEXT(tblEvenementen[[#This Row],[DATUM]],\"ddd\")))","v":"VR"},{"$f":"IF(ISBLANK(tblEvenementen[[#This Row],[DATUM]]),\"\",UPPER(TEXT(tblEvenementen[[#This Row],[DATUM]],\"mmm\")))","v":"AUG"},"Gemeenteraad"]
[null,"2016-08-13",{"$f":"IF(ISBLANK(tblEvenementen[[#This Row],[DATUM]]),\"\",UPPER(TEXT(tblEvenementen[[#This Row],[DATUM]],\"ddd\")))","v":"ZA"},{"$f":"IF(ISBLANK(tblEvenementen[[#This Row],[DATUM]]),\"\",UPPER(TEXT(tblEvenementen[[#This Row],[DATUM]],\"mmm\")))","v":"AUG"},"Gemeenschapstuin"]
[null,"2016-09-01",{"$f":"IF(ISBLANK(tblEvenementen[[#This Row],[DATUM]]),\"\",UPPER(TEXT(tblEvenementen[[#This Row],[DATUM]],\"ddd\")))","v":"DO"},{"$f":"IF(ISBLANK(tblEvenementen[[#This Row],[DATUM]]),\"\",UPPER(TEXT(tblEvenementen[[#This Row],[DATUM]],\"mmm\")))","v":"SEP"},"Budgetcommissie"]
[null,"2016-10-01",{"$f":"IF(ISBLANK(tblEvenementen[[#This Row],[DATUM]]),\"\",UPPER(TEXT(tblEvenementen[[#This Row],[DATUM]],\"ddd\")))","v":"ZA"},{"$f":"IF(ISBLANK(tblEvenementen[[#This Row],[DATUM]]),\"\",UPPER(TEXT(tblEvenementen[[#This Row],[DATUM]],\"mmm\")))","v":"OKT"},"Budgetcommissie"]
[null,"2016-11-03",{"$f":"IF(ISBLANK(tblEvenementen[[#This Row],[DATUM]]),\"\",UPPER(TEXT(tblEvenementen[[#This Row],[DATUM]],\"ddd\")))","v":"DO"},{"$f":"IF(ISBLANK(tblEvenementen[[#This Row],[DATUM]]),\"\",UPPER(TEXT(tblEvenementen[[#This Row],[DATUM]],\"mmm\")))","v":"NOV"},"Budgetcommissie"]
[null,"2016-12-01",{"$f":"IF(ISBLANK(tblEvenementen[[#This Row],[DATUM]]),\"\",UPPER(TEXT(tblEvenementen[[#This Row],[DATUM]],\"ddd\")))","v":"DO"},{"$f":"IF(ISBLANK(tblEvenementen[[#This Row],[DATUM]]),\"\",UPPER(TEXT(tblEvenementen[[#This Row],[DATUM]],\"mmm\")))","v":"DEC"},"Budgetcommissie"]
[null,"2017-01-01",{"$f":"IF(ISBLANK(tblEvenementen[[#This Row],[DATUM]]),\"\",UPPER(TEXT(tblEvenementen[[#This Row],[DATUM]],\"ddd\")))","v":"ZO"},{"$f":"IF(ISBLANK(tblEvenementen[[#This Row],[DATUM]]),\"\",UPPER(TEXT(tblEvenementen[[#This Row],[DATUM]],\"mmm\")))","v":"JAN"},"Budgetcommissie"]
[null,"2017-02-02",{"$f":"IF(ISBLANK(tblEvenementen[[#This Row],[DATUM]]),\"\",UPPER(TEXT(tblEvenementen[[#This Row],[DATUM]],\"ddd\")))","v":"DO"},{"$f":"IF(ISBLANK(tblEvenementen[[#This Row],[DATUM]]),\"\",UPPER(TEXT(tblEvenementen[[#This Row],[DATUM]],\"mmm\")))","v":"FEB"},"Budgetcommissie"]
[null,"2017-03-02",{"$f":"IF(ISBLANK(tblEvenementen[[#This Row],[DATUM]]),\"\",UPPER(TEXT(tblEvenementen[[#This Row],[DATUM]],\"ddd\")))","v":"DO"},{"$f":"IF(ISBLANK(tblEvenementen[[#This Row],[DATUM]]),\"\",UPPER(TEXT(tblEvenementen[[#This Row],[DATUM]],\"mmm\")))","v":"MRT"},"Budgetcommissie"]
[null,"2017-04-01",{"$f":"IF(ISBLANK(tblEvenementen[[#This Row],[DATUM]]),\"\",UPPER(TEXT(tblEvenementen[[#This Row],[DATUM]],\"ddd\")))","v":"ZA"},{"$f":"IF(ISBLANK(tblEvenementen[[#This Row],[DATUM]]),\"\",UPPER(TEXT(tblEvenementen[[#This Row],[DATUM]],\"mmm\")))","v":"APR"},"Budgetcommissie"]
[null,"2017-05-01",{"$f":"IF(ISBLANK(tblEvenementen[[#This Row],[DATUM]]),\"\",UPPER(TEXT(tblEvenementen[[#This Row],[DATUM]],\"ddd\")))","v":"MA"},{"$f":"IF(ISBLANK(tblEvenementen[[#This Row],[DATUM]]),\"\",UPPER(TEXT(tblEvenementen[[#This Row],[DATUM]],\"mmm\")))","v":"MEI"},"Budgetcommissie"]
[null,"2017-06-01",{"$f":"IF(ISBLANK(tblEvenementen[[#This Row],[DATUM]]),\"\",UPPER(TEXT(tblEvenementen[[#This Row],[DATUM]],\"ddd\")))","v":"DO"},{"$f":"IF(ISBLANK(tblEvenementen[[#This Row],[DATUM]]),\"\",UPPER(TEXT(tblEvenementen[[#This Row],[DATUM]],\"mmm\")))","v":"JUN"},"Budgetcommissie"]
[null,"2017-06-02",{"$f":"IF(ISBLANK(tblEvenementen[[#This Row],[DATUM]]),\"\",UPPER(TEXT(tblEvenementen[[#This Row],[DATUM]],\"ddd\")))","v":"VR"},{"$f":"IF(ISBLANK(tblEvenementen[[#This Row],[DATUM]]),\"\",UPPER(TEXT(tblEvenementen[[#This Row],[DATUM]],\"mmm\")))","v":"JUN"},"Gemeenteraad"]

{"sheet":"AGENDA","index":1,"n_rows":35,"n_cols":21,"rows_kept":35,"merged":[[1,5,1,11],[30,8,34,20]]}
[]
[null,null,2016,null,null,{"$f":"LOOKUP(Maandnum,tblMaanden[NUMMER],tblMaanden[MAAND])","v":"JULI"}]
[null,null,7,null,null,{"$f":"DATE(JaarWeergeven,Maandnum,1)","v":"2016-07-01"},null,null,{"$f":"WEEKDAY(Begindatum)","v":6}]
[null,null,"MA",null,null,"DI",null,null,"WO",null,null,"DO",null,null,"VR",null,null,"ZA",null,null,"ZO"]
[]
[null,null,{"$f":"Begindatum-(WEEKDAY(Begindatum)-2)+{0;1;2;3;4;5}*7 +{1,2,3,4,5,6,7}-3+COLUMN(B1)","v":"2016-06-27"},null,null,{"$f":"Begindatum-(WEEKDAY(Begindatum)-2)+{0;1;2;3;4;5}*7 +{1,2,3,4,5,6,7}-3+COLUMN(C1)","v":"2016-06-28"},null,null,{"$f":"Begindatum-(WEEKDAY(Begindatum)-2)+{0;1;2;3;4;5}*7 +{1,2,3,4,5,6,7}-3+COLUMN(D1)","v":"2016-06-29"},null,null,{"$f":"Begindatum-(WEEKDAY(Begindatum)-2)+{0;1;2;3;4;5}*7 +{1,2,3,4,5,6,7}-3+COLUMN(E1)","v":"2016-06-30"},null,null,{"$f":"Begindatum-(WEEKDAY(Begindatum)-2)+{0;1;2;3;4;5}*7 +{1,2,3,4,5,6,7}-3+COLUMN(F1)","v":"2016-07-01"},null,null,{"$f":"Begindatum-(WEEKDAY(Begindatum)-2)+{0;1;2;3;4;5}*7 +{1,2,3,4,5,6,7}-3+COLUMN(G1)","v":"2016-07-02"},null,null,{"$f":"Begindatum-(WEEKDAY(Begindatum)-2)+{0;1;2;3;4;5}*7 +{1,2,3,4,5,6,7}-3+COLUMN(H1)","v":"2016-07-03"}]
[null,null,{"$f":"IFERROR(INDEX(tblEvenementen[],SMALL(IF(Datums=C$6,ROW(Datums)),ROW(1:1))-TabelrijBegin,4),\"\")","v":""},null,null,{"$f":"IFERROR(INDEX(tblEvenementen[],SMALL(IF(Datums=F$6,ROW(Datums)),ROW(1:1))-TabelrijBegin,4),\"\")","v":""},null,null,{"$f":"IFERROR(INDEX(tblEvenementen[],SMALL(IF(Datums=I$6,ROW(Datums)),ROW(1:1))-TabelrijBegin,4),\"\")","v":""},null,null,{"$f":"IFERROR(INDEX(tblEvenementen[],SMALL(IF(Datums=L$6,ROW(Datums)),ROW(1:1))-TabelrijBegin,4),\"\")","v":""},null,null,{"$f":"IFERROR(INDEX(tblEvenementen[],SMALL(IF(Datums=O$6,ROW(Datums)),ROW(1:1))-TabelrijBegin,4),\"\")","v":"Gemeenschapstuin"},null,null,{"$f":"IFERROR(INDEX(tblEvenementen[],SMALL(IF(Datums=R$6,ROW(Datums)),ROW(1:1))-TabelrijBegin,4),\"\")","v":"Gemeenschapstuin"},null,null,{"$f":"IFERROR(INDEX(tblEvenementen[],SMALL(IF(Datums=U$6,ROW(Datums)),ROW(1:1))-TabelrijBegin,4),\"\")","v":"Filmavond in het park"}]
[null,null,{"$f":"IFERROR(INDEX(tblEvenementen[],SMALL(IF(Datums=C$6,ROW(Datums)),ROW(2:2))-TabelrijBegin,4),\"\")","v":""},null,null,{"$f":"IFERROR(INDEX(tblEvenementen[],SMALL(IF(Datums=F$6,ROW(Datums)),ROW(2:2))-TabelrijBegin,4),\"\")","v":""},null,null,{"$f":"IFERROR(INDEX(tblEvenementen[],SMALL(IF(Datums=I$6,ROW(Datums)),ROW(2:2))-TabelrijBegin,4),\"\")","v":""},null,null,{"$f":"IFERROR(INDEX(tblEvenementen[],SMALL(IF(Datums=L$6,ROW(Datums)),ROW(2:2))-TabelrijBegin,4),\"\")","v":""},null,null,{"$f":"IFERROR(INDEX(tblEvenementen[],SMALL(IF(Datums=O$6,ROW(Datums)),ROW(2:2))-TabelrijBegin,4),\"\")","v":"Gemeenteraad"},null,null,{"$f":"IFERROR(INDEX(tblEvenementen[],SMALL(IF(Datums=R$6,ROW(Datums)),ROW(2:2))-TabelrijBegin,4),\"\")","v":""},null,null,{"$f":"IFERROR(INDEX(tblEvenementen[],SMALL(IF(Datums=U$6,ROW(Datums)),ROW(2:2))-TabelrijBegin,4),\"\")","v":""}]
[null,null,{"$f":"IFERROR(INDEX(tblEvenementen[],SMALL(IF(Datums=C$6,ROW(Datums)),ROW(3:3))-TabelrijBegin,4),\"\")","v":""},null,null,{"$f":"IFERROR(INDEX(tblEvenementen[],SMALL(IF(Datums=F$6,ROW(Datums)),ROW(3:3))-TabelrijBegin,4),\"\")","v":""},null,null,{"$f":"IFERROR(INDEX(tblEvenementen[],SMALL(IF(Datums=I$6,ROW(Datums)),ROW(3:3))-TabelrijBegin,4),\"\")","v":""},null,null,{"$f":"IFERROR(INDEX(tblEvenementen[],SMALL(IF(Datums=L$6,ROW(Datums)),ROW(3:3))-TabelrijBegin,4),\"\")","v":""},null,null,{"$f":"IFERROR(INDEX(tblEvenementen[],SMALL(IF(Datums=O$6,ROW(Datums)),ROW(3:3))-TabelrijBegin,4),\"\")","v":""},null,null,{"$f":"IFERROR(INDEX(tblEvenementen[],SMALL(IF(Datums=R$6,ROW(Datums)),ROW(3:3))-TabelrijBegin,4),\"\")","v":""},null,null,{"$f":"IFERROR(INDEX(tblEvenementen[],SMALL(IF(Datums=U$6,ROW(Datums)),ROW(3:3))-TabelrijBegin,4),\"\")","v":""}]
[null,null,{"$f":"IFERROR(INDEX(tblEvenementen[],SMALL(IF(Datums=C$6,ROW(Datums)),ROW(4:4))-TabelrijBegin,4),\"\")","v":""},null,null,{"$f":"IFERROR(INDEX(tblEvenementen[],SMALL(IF(Datums=F$6,ROW(Datums)),ROW(4:4))-TabelrijBegin,4),\"\")","v":""},null,null,{"$f":"IFERROR(INDEX(tblEvenementen[],SMALL(IF(Datums=I$6,ROW(Datums)),ROW(4:4))-TabelrijBegin,4),\"\")","v":""},null,null,{"$f":"IFERROR(INDEX(tblEvenementen[],SMALL(IF(Datums=L$6,ROW(Datums)),ROW(4:4))-TabelrijBegin,4),\"\")","v":""},null,null,{"$f":"IFERROR(INDEX(tblEvenementen[],SMALL(IF(Datums=O$6,ROW(Datums)),ROW(4:4))-TabelrijBegin,4),\"\")","v":""},null,null,{"$f":"IFERROR(INDEX(tblEvenementen[],SMALL(IF(Datums=R$6,ROW(Datums)),ROW(4:4))-TabelrijBegin,4),\"\")","v":""},null,null,{"$f":"IFERROR(INDEX(tblEvenementen[],SMALL(IF(Datums=U$6,ROW(Datums)),ROW(4:4))-TabelrijBegin,4),\"\")","v":""}]
[null,null,{"$f":"U6+1","v":"2016-07-04"},null,null,{"$f":"C11+1","v":"2016-07-05"},null,null,{"$f":"F11+1","v":"2016-07-06"},null,null,{"$f":"I11+1","v":"2016-07-07"},null,null,{"$f":"L11+1","v":"2016-07-08"},null,null,{"$f":"O11+1","v":"2016-07-09"},null,null,{"$f":"R11+1","v":"2016-07-10"}]
[null,null,{"$f":"IFERROR(INDEX(tblEvenementen[],SMALL(IF(Datums=C$11,ROW(Datums)),ROW(1:1))-TabelrijBegin,4),\"\")","v":""},null,null,{"$f":"IFERROR(INDEX(tblEvenementen[],SMALL(IF(Datums=F$11,ROW(Datums)),ROW(1:1))-TabelrijBegin,4),\"\")","v":""},null,null,{"$f":"IFERROR(INDEX(tblEvenementen[],SMALL(IF(Datums=I$11,ROW(Datums)),ROW(1:1))-TabelrijBegin,4),\"\")","v":""},null,null,{"$f":"IFERROR(INDEX(tblEvenementen[],SMALL(IF(Datums=L$11,ROW(Datums)),ROW(1:1))-TabelrijBegin,4),\"\")","v":""},null,null,{"$f":"IFERROR(INDEX(tblEvenementen[],SMALL(IF(Datums=O$11,ROW(Datums)),ROW(1:1))-TabelrijBegin,4),\"\")","v":"Gemeenteraad"},null,null,{"$f":"IFERROR(INDEX(tblEvenementen[],SMALL(IF(Datums=R$11,ROW(Datums)),ROW(1:1))-TabelrijBegin,4),\"\")","v":""},null,null,{"$f":"IFERROR(INDEX(tblEvenementen[],SMALL(IF(Datums=U$11,ROW(Datums)),ROW(1:1))-TabelrijBegin,4),\"\")","v":""}]
[null,null,{"$f":"IFERROR(INDEX(tblEvenementen[],SMALL(IF(Datums=C$11,ROW(Datums)),ROW(2:2))-TabelrijBegin,4),\"\")","v":""},null,null,{"$f":"IFERROR(INDEX(tblEvenementen[],SMALL(IF(Datums=F$11,ROW(Datums)),ROW(2:2))-TabelrijBegin,4),\"\")","v":""},null,null,{"$f":"IFERROR(INDEX(tblEvenementen[],SMALL(IF(Datums=I$11,ROW(Datums)),ROW(2:2))-TabelrijBegin,4),\"\")","v":""},null,null,{"$f":"IFERROR(INDEX(tblEvenementen[],SMALL(IF(Datums=L$11,ROW(Datums)),ROW(2:2))-TabelrijBegin,4),\"\")","v":""},null,null,{"$f":"IFERROR(INDEX(tblEvenementen[],SMALL(IF(Datums=O$11,ROW(Datums)),ROW(2:2))-TabelrijBegin,4),\"\")","v":""},null,null,{"$f":"IFERROR(INDEX(tblEvenementen[],SMALL(IF(Datums=R$11,ROW(Datums)),ROW(2:2))-TabelrijBegin,4),\"\")","v":""},null,null,{"$f":"IFERROR(INDEX(tblEvenementen[],SMALL(IF(Datums=U$11,ROW(Datums)),ROW(2:2))-TabelrijBegin,4),\"\")","v":""}]
[null,null,{"$f":"IFERROR(INDEX(tblEvenementen[],SMALL(IF(Datums=C$11,ROW(Datums)),ROW(3:3))-TabelrijBegin,4),\"\")","v":""},null,null,{"$f":"IFERROR(INDEX(tblEvenementen[],SMALL(IF(Datums=F$11,ROW(Datums)),ROW(3:3))-TabelrijBegin,4),\"\")","v":""},null,null,{"$f":"IFERROR(INDEX(tblEvenementen[],SMALL(IF(Datums=I$11,ROW(Datums)),ROW(3:3))-TabelrijBegin,4),\"\")","v":""},null,null,{"$f":"IFERROR(INDEX(tblEvenementen[],SMALL(IF(Datums=L$11,ROW(Datums)),ROW(3:3))-TabelrijBegin,4),\"\")","v":""},null,null,{"$f":"IFERROR(INDEX(tblEvenementen[],SMALL(IF(Datums=O$11,ROW(Datums)),ROW(3:3))-TabelrijBegin,4),\"\")","v":""},null,null,{"$f":"IFERROR(INDEX(tblEvenementen[],SMALL(IF(Datums=R$11,ROW(Datums)),ROW(3:3))-TabelrijBegin,4),\"\")","v":""},null,null,{"$f":"IFERROR(INDEX(tblEvenementen[],SMALL(IF(Datums=U$11,ROW(Datums)),ROW(3:3))-TabelrijBegin,4),\"\")","v":""}]
[null,null,{"$f":"IFERROR(INDEX(tblEvenementen[],SMALL(IF(Datums=C$11,ROW(Datums)),ROW(4:4))-TabelrijBegin,4),\"\")","v":""},null,null,{"$f":"IFERROR(INDEX(tblEvenementen[],SMALL(IF(Datums=F$11,ROW(Datums)),ROW(4:4))-TabelrijBegin,4),\"\")","v":""},null,null,{"$f":"IFERROR(INDEX(tblEvenementen[],SMALL(IF(Datums=I$11,ROW(Datums)),ROW(4:4))-TabelrijBegin,4),\"\")","v":""},null,null,{"$f":"IFERROR(INDEX(tblEvenementen[],SMALL(IF(Datums=L$11,ROW(Datums)),ROW(4:4))-TabelrijBegin,4),\"\")","v":""},null,null,{"$f":"IFERROR(INDEX(tblEvenementen[],SMALL(IF(Datums=O$11,ROW(Datums)),ROW(4:4))-TabelrijBegin,4),\"\")","v":""},null,null,{"$f":"IFERROR(INDEX(tblEvenementen[],SMALL(IF(Datums=R$11,ROW(Datums)),ROW(4:4))-TabelrijBegin,4),\"\")","v":""},null,null,{"$f":"IFERROR(INDEX(tblEvenementen[],SMALL(IF(Datums=U$11,ROW(Datums)),ROW(4:4))-TabelrijBegin,4),\"\")","v":""}]
[null,null,{"$f":"U11+1","v":"2016-07-11"},null,null,{"$f":"C16+1","v":"2016-07-12"},null,null,{"$f":"F16+1","v":"2016-07-13"},null,null,{"$f":"I16+1","v":"2016-07-14"},null,null,{"$f":"L16+1","v":"2016-07-15"},null,null,{"$f":"O16+1","v":"2016-07-16"},null,null,{"$f":"R16+1","v":"2016-07-17"}]
[null,null,{"$f":"IFERROR(INDEX(tblEvenementen[],SMALL(IF(Datums=C$16,ROW(Datums)),ROW(1:1))-TabelrijBegin,4),\"\")","v":"Kamer van koophandel Lunch"},null,null,{"$f":"IFERROR(INDEX(tblEvenementen[],SMALL(IF(Datums=F$16,ROW(Datums)),ROW(1:1))-TabelrijBegin,4),\"\")","v":"Antiekshow"},null,null,{"$f":"IFERROR(INDEX(tblEvenementen[],SMALL(IF(Datums=I$16,ROW(Datums)),ROW(1:1))-TabelrijBegin,4),\"\")","v":""},null,null,{"$f":"IFERROR(INDEX(tblEvenementen[],SMALL(IF(Datums=L$16,ROW(Datums)),ROW(1:1))-TabelrijBegin,4),\"\")","v":"Gemeenschapsworkshop"},null,null,{"$f":"IFERROR(INDEX(tblEvenementen[],SMALL(IF(Datums=O$16,ROW(Datums)),ROW(1:1))-TabelrijBegin,4),\"\")","v":"Gemeenteraad"},null,null,{"$f":"IFERROR(INDEX(tblEvenementen[],SMALL(IF(Datums=R$16,ROW(Datums)),ROW(1:1))-TabelrijBegin,4),\"\")","v":""},null,null,{"$f":"IFERROR(INDEX(tblEvenementen[],SMALL(IF(Datums=U$16,ROW(Datums)),ROW(1:1))-TabelrijBegin,4),\"\")","v":""}]
[null,null,{"$f":"IFERROR(INDEX(tblEvenementen[],SMALL(IF(Datums=C$16,ROW(Datums)),ROW(2:2))-TabelrijBegin,4),\"\")","v":""},null,null,{"$f":"IFERROR(INDEX(tblEvenementen[],SMALL(IF(Datums=F$16,ROW(Datums)),ROW(2:2))-TabelrijBegin,4),\"\")","v":""},null,null,{"$f":"IFERROR(INDEX(tblEvenementen[],SMALL(IF(Datums=I$16,ROW(Datums)),ROW(2:2))-TabelrijBegin,4),\"\")","v":""},null,null,{"$f":"IFERROR(INDEX(tblEvenementen[],SMALL(IF(Datums=L$16,ROW(Datums)),ROW(2:2))-TabelrijBegin,4),\"\")","v":""},null,null,{"$f":"IFERROR(INDEX(tblEvenementen[],SMALL(IF(Datums=O$16,ROW(Datums)),ROW(2:2))-TabelrijBegin,4),\"\")","v":""},null,null,{"$f":"IFERROR(INDEX(tblEvenementen[],SMALL(IF(Datums=R$16,ROW(Datums)),ROW(2:2))-TabelrijBegin,4),\"\")","v":""},null,null,{"$f":"IFERROR(INDEX(tblEvenementen[],SMALL(IF(Datums=U$16,ROW(Datums)),ROW(2:2))-TabelrijBegin,4),\"\")","v":""}]
[null,null,{"$f":"IFERROR(INDEX(tblEvenementen[],SMALL(IF(Datums=C$16,ROW(Datums)),ROW(3:3))-TabelrijBegin,4),\"\")","v":""},null,null,{"$f":"IFERROR(INDEX(tblEvenementen[],SMALL(IF(Datums=F$16,ROW(Datums)),ROW(3:3))-TabelrijBegin,4),\"\")","v":""},null,null,{"$f":"IFERROR(INDEX(tblEvenementen[],SMALL(IF(Datums=I$16,ROW(Datums)),ROW(3:3))-TabelrijBegin,4),\"\")","v":""},null,null,{"$f":"IFERROR(INDEX(tblEvenementen[],SMALL(IF(Datums=L$16,ROW(Datums)),ROW(3:3))-TabelrijBegin,4),\"\")","v":""},null,null,{"$f":"IFERROR(INDEX(tblEvenementen[],SMALL(IF(Datums=O$16,ROW(Datums)),ROW(3:3))-TabelrijBegin,4),\"\")","v":""},null,null,{"$f":"IFERROR(INDEX(tblEvenementen[],SMALL(IF(Datums=R$16,ROW(Datums)),ROW(3:3))-TabelrijBegin,4),\"\")","v":""},null,null,{"$f":"IFERROR(INDEX(tblEvenementen[],SMALL(IF(Datums=U$16,ROW(Datums)),ROW(3:3))-TabelrijBegin,4),\"\")","v":""}]
[null,null,{"$f":"IFERROR(INDEX(tblEvenementen[],SMALL(IF(Datums=C$16,ROW(Datums)),ROW(4:4))-TabelrijBegin,4),\"\")","v":""},null,null,{"$f":"IFERROR(INDEX(tblEvenementen[],SMALL(IF(Datums=F$16,ROW(Datums)),ROW(4:4))-TabelrijBegin,4),\"\")","v":""},null,null,{"$f":"IFERROR(INDEX(tblEvenementen[],SMALL(IF(Datums=I$16,ROW(Datums)),ROW(4:4))-TabelrijBegin,4),\"\")","v":""},null,null,{"$f":"IFERROR(INDEX(tblEvenementen[],SMALL(IF(Datums=L$16,ROW(Datums)),ROW(4:4))-TabelrijBegin,4),\"\")","v":""},null,null,{"$f":"IFERROR(INDEX(tblEvenementen[],SMALL(IF(Datums=O$16,ROW(Datums)),ROW(4:4))-TabelrijBegin,4),\"\")","v":""},null,null,{"$f":"IFERROR(INDEX(tblEvenementen[],SMALL(IF(Datums=R$16,ROW(Datums)),ROW(4:4))-TabelrijBegin,4),\"\")","v":""},null,null,{"$f":"IFERROR(INDEX(tblEvenementen[],SMALL(IF(Datums=U$16,ROW(Datums)),ROW(4:4))-TabelrijBegin,4),\"\")","v":""}]
[null,null,{"$f":"U16+1","v":"2016-07-18"},null,null,{"$f":"C21+1","v":"2016-07-19"},null,null,{"$f":"F21+1","v":"2016-07-20"},null,null,{"$f":"I21+1","v":"2016-07-21"},null,null,{"$f":"L21+1","v":"2016-07-22"},null,null,{"$f":"O21+1","v":"2016-07-23"},null,null,{"$f":"R21+1","v":"2016-07-24"}]
[null,null,{"$f":"IFERROR(INDEX(tblEvenementen[],SMALL(IF(Datums=C$21,ROW(Datums)),ROW(1:1))-TabelrijBegin,4),\"\")","v":""},null,null,{"$f":"IFERROR(INDEX(tblEvenementen[],SMALL(IF(Datums=F$21,ROW(Datums)),ROW(1:1))-TabelrijBegin,4),\"\")","v":"Workshop voor strategische planning"},null,null,{"$f":"IFERROR(INDEX(tblEvenementen[],SMALL(IF(Datums=I$21,ROW(Datums)),ROW(1:1))-TabelrijBegin,4),\"\")","v":"Park opruimen"},null,null,{"$f":"IFERROR(INDEX(tblEvenementen[],SMALL(IF(Datums=L$21,ROW(Datums)),ROW(1:1))-TabelrijBegin,4),\"\")","v":""},null,null,{"$f":"IFERROR(INDEX(tblEvenementen[],SMALL(IF(Datums=O$21,ROW(Datums)),ROW(1:1))-TabelrijBegin,4),\"\")","v":"Gemeenteraad"},null,null,{"$f":"IFERROR(INDEX(tblEvenementen[],SMALL(IF(Datums=R$21,ROW(Datums)),ROW(1:1))-TabelrijBegin,4),\"\")","v":""},null,null,{"$f":"IFERROR(INDEX(tblEvenementen[],SMALL(IF(Datums=U$21,ROW(Datums)),ROW(1:1))-TabelrijBegin,4),\"\")","v":""}]
[null,null,{"$f":"IFERROR(INDEX(tblEvenementen[],SMALL(IF(Datums=C$21,ROW(Datums)),ROW(2:2))-TabelrijBegin,4),\"\")","v":""},null,null,{"$f":"IFERROR(INDEX(tblEvenementen[],SMALL(IF(Datums=F$21,ROW(Datums)),ROW(2:2))-TabelrijBegin,4),\"\")","v":""},null,null,{"$f":"IFERROR(INDEX(tblEvenementen[],SMALL(IF(Datums=I$21,ROW(Datums)),ROW(2:2))-TabelrijBegin,4),\"\")","v":""},null,null,{"$f":"IFERROR(INDEX(tblEvenementen[],SMALL(IF(Datums=L$21,ROW(Datums)),ROW(2:2))-TabelrijBegin,4),\"\")","v":""},null,null,{"$f":"IFERROR(INDEX(tblEvenementen[],SMALL(IF(Datums=O$21,ROW(Datums)),ROW(2:2))-TabelrijBegin,4),\"\")","v":""},null,null,{"$f":"IFERROR(INDEX(tblEvenementen[],SMALL(IF(Datums=R$21,ROW(Datums)),ROW(2:2))-TabelrijBegin,4),\"\")","v":""},null,null,{"$f":"IFERROR(INDEX(tblEvenementen[],SMALL(IF(Datums=U$21,ROW(Datums)),ROW(2:2))-TabelrijBegin,4),\"\")","v":""}]
[null,null,{"$f":"IFERROR(INDEX(tblEvenementen[],SMALL(IF(Datums=C$21,ROW(Datums)),ROW(3:3))-TabelrijBegin,4),\"\")","v":""},null,null,{"$f":"IFERROR(INDEX(tblEvenementen[],SMALL(IF(Datums=F$21,ROW(Datums)),ROW(3:3))-TabelrijBegin,4),\"\")","v":""},null,null,{"$f":"IFERROR(INDEX(tblEvenementen[],SMALL(IF(Datums=I$21,ROW(Datums)),ROW(3:3))-TabelrijBegin,4),\"\")","v":""},null,null,{"$f":"IFERROR(INDEX(tblEvenementen[],SMALL(IF(Datums=L$21,ROW(Datums)),ROW(3:3))-TabelrijBegin,4),\"\")","v":""},null,null,{"$f":"IFERROR(INDEX(tblEvenementen[],SMALL(IF(Datums=O$21,ROW(Datums)),ROW(3:3))-TabelrijBegin,4),\"\")","v":""},null,null,{"$f":"IFERROR(INDEX(tblEvenementen[],SMALL(IF(Datums=R$21,ROW(Datums)),ROW(3:3))-TabelrijBegin,4),\"\")","v":""},null,null,{"$f":"IFERROR(INDEX(tblEvenementen[],SMALL(IF(Datums=U$21,ROW(Datums)),ROW(3:3))-TabelrijBegin,4),\"\")","v":""}]
[null,null,{"$f":"IFERROR(INDEX(tblEvenementen[],SMALL(IF(Datums=C$21,ROW(Datums)),ROW(4:4))-TabelrijBegin,4),\"\")","v":""},null,null,{"$f":"IFERROR(INDEX(tblEvenementen[],SMALL(IF(Datums=F$21,ROW(Datums)),ROW(4:4))-TabelrijBegin,4),\"\")","v":""},null,null,{"$f":"IFERROR(INDEX(tblEvenementen[],SMALL(IF(Datums=I$21,ROW(Datums)),ROW(4:4))-TabelrijBegin,4),\"\")","v":""},null,null,{"$f":"IFERROR(INDEX(tblEvenementen[],SMALL(IF(Datums=L$21,ROW(Datums)),ROW(4:4))-TabelrijBegin,4),\"\")","v":""},null,null,{"$f":"IFERROR(INDEX(tblEvenementen[],SMALL(IF(Datums=O$21,ROW(Datums)),ROW(4:4))-TabelrijBegin,4),\"\")","v":""},null,null,{"$f":"IFERROR(INDEX(tblEvenementen[],SMALL(IF(Datums=R$21,ROW(Datums)),ROW(4:4))-TabelrijBegin,4),\"\")","v":""},null,null,{"$f":"IFERROR(INDEX(tblEvenementen[],SMALL(IF(Datums=U$21,ROW(Datums)),ROW(4:4))-TabelrijBegin,4),\"\")","v":""}]
[null,null,{"$f":"U21+1","v":"2016-07-25"},null,null,{"$f":"C26+1","v":"2016-07-26"},null,null,{"$f":"F26+1","v":"2016-07-27"},null,null,{"$f":"I26+1","v":"2016-07-28"},null,null,{"$f":"L26+1","v":"2016-07-29"},null,null,{"$f":"O26+1","v":"2016-07-30"},null,null,{"$f":"R26+1","v":"2016-07-31"}]
[null,null,{"$f":"IFERROR(INDEX(tblEvenementen[],SMALL(IF(Datums=C$26,ROW(Datums)),ROW(1:1))-TabelrijBegin,4),\"\")","v":""},null,null,{"$f":"IFERROR(INDEX(tblEvenementen[],SMALL(IF(Datums=F$26,ROW(Datums)),ROW(1:1))-TabelrijBegin,4),\"\")","v":"Stadswandeling"},null,null,{"$f":"IFERROR(INDEX(tblEvenementen[],SMALL(IF(Datums=I$26,ROW(Datums)),ROW(1:1))-TabelrijBegin,4),\"\")","v":""},null,null,{"$f":"IFERROR(INDEX(tblEvenementen[],SMALL(IF(Datums=L$26,ROW(Datums)),ROW(1:1))-TabelrijBegin,4),\"\")","v":""},null,null,{"$f":"IFERROR(INDEX(tblEvenementen[],SMALL(IF(Datums=O$26,ROW(Datums)),ROW(1:1))-TabelrijBegin,4),\"\")","v":"Gemeenteraad"},null,null,{"$f":"IFERROR(INDEX(tblEvenementen[],SMALL(IF(Datums=R$26,ROW(Datums)),ROW(1:1))-TabelrijBegin,4),\"\")","v":""},null,null,{"$f":"IFERROR(INDEX(tblEvenementen[],SMALL(IF(Datums=U$26,ROW(Datums)),ROW(1:1))-TabelrijBegin,4),\"\")","v":""}]
[null,null,{"$f":"IFERROR(INDEX(tblEvenementen[],SMALL(IF(Datums=C$26,ROW(Datums)),ROW(2:2))-TabelrijBegin,4),\"\")","v":""},null,null,{"$f":"IFERROR(INDEX(tblEvenementen[],SMALL(IF(Datums=F$26,ROW(Datums)),ROW(2:2))-TabelrijBegin,4),\"\")","v":"Kroegentocht"},null,null,{"$f":"IFERROR(INDEX(tblEvenementen[],SMALL(IF(Datums=I$26,ROW(Datums)),ROW(2:2))-TabelrijBegin,4),\"\")","v":""},null,null,{"$f":"IFERROR(INDEX(tblEvenementen[],SMALL(IF(Datums=L$26,ROW(Datums)),ROW(2:2))-TabelrijBegin,4),\"\")","v":""},null,null,{"$f":"IFERROR(INDEX(tblEvenementen[],SMALL(IF(Datums=O$26,ROW(Datums)),ROW(2:2))-TabelrijBegin,4),\"\")","v":""},null,null,{"$f":"IFERROR(INDEX(tblEvenementen[],SMALL(IF(Datums=R$26,ROW(Datums)),ROW(2:2))-TabelrijBegin,4),\"\")","v":""},null,null,{"$f":"IFERROR(INDEX(tblEvenementen[],SMALL(IF(Datums=U$26,ROW(Datums)),ROW(2:2))-TabelrijBegin,4),\"\")","v":""}]
[null,null,{"$f":"IFERROR(INDEX(tblEvenementen[],SMALL(IF(Datums=C$26,ROW(Datums)),ROW(3:3))-TabelrijBegin,4),\"\")","v":""},null,null,{"$f":"IFERROR(INDEX(tblEvenementen[],SMALL(IF(Datums=F$26,ROW(Datums)),ROW(3:3))-TabelrijBegin,4),\"\")","v":""},null,null,{"$f":"IFERROR(INDEX(tblEvenementen[],SMALL(IF(Datums=I$26,ROW(Datums)),ROW(3:3))-TabelrijBegin,4),\"\")","v":""},null,null,{"$f":"IFERROR(INDEX(tblEvenementen[],SMALL(IF(Datums=L$26,ROW(Datums)),ROW(3:3))-TabelrijBegin,4),\"\")","v":""},null,null,{"$f":"IFERROR(INDEX(tblEvenementen[],SMALL(IF(Datums=O$26,ROW(Datums)),ROW(3:3))-TabelrijBegin,4),\"\")","v":""},null,null,{"$f":"IFERROR(INDEX(tblEvenementen[],SMALL(IF(Datums=R$26,ROW(Datums)),ROW(3:3))-TabelrijBegin,4),\"\")","v":""},null,null,{"$f":"IFERROR(INDEX(tblEvenementen[],SMALL(IF(Datums=U$26,ROW(Datums)),ROW(3:3))-TabelrijBegin,4),\"\")","v":""}]
[null,null,{"$f":"IFERROR(INDEX(tblEvenementen[],SMALL(IF(Datums=C$26,ROW(Datums)),ROW(4:4))-TabelrijBegin,4),\"\")","v":""},null,null,{"$f":"IFERROR(INDEX(tblEvenementen[],SMALL(IF(Datums=F$26,ROW(Datums)),ROW(4:4))-TabelrijBegin,4),\"\")","v":""},null,null,{"$f":"IFERROR(INDEX(tblEvenementen[],SMALL(IF(Datums=I$26,ROW(Datums)),ROW(4:4))-TabelrijBegin,4),\"\")","v":""},null,null,{"$f":"IFERROR(INDEX(tblEvenementen[],SMALL(IF(Datums=L$26,ROW(Datums)),ROW(4:4))-TabelrijBegin,4),\"\")","v":""},null,null,{"$f":"IFERROR(INDEX(tblEvenementen[],SMALL(IF(Datums=O$26,ROW(Datums)),ROW(4:4))-TabelrijBegin,4),\"\")","v":""},null,null,{"$f":"IFERROR(INDEX(tblEvenementen[],SMALL(IF(Datums=R$26,ROW(Datums)),ROW(4:4))-TabelrijBegin,4),\"\")","v":""},null,null,{"$f":"IFERROR(INDEX(tblEvenementen[],SMALL(IF(Datums=U$26,ROW(Datums)),ROW(4:4))-TabelrijBegin,4),\"\")","v":""}]
[null,null,{"$f":"U26+1","v":"2016-08-01"},null,null,{"$f":"C31+1","v":"2016-08-02"},null,null,"NOTITIES:"]
[null,null,{"$f":"IFERROR(INDEX(tblEvenementen[],SMALL(IF(Datums=C$31,ROW(Datums)),ROW(1:1))-TabelrijBegin,4),\"\")","v":""},null,null,{"$f":"IFERROR(INDEX(tblEvenementen[],SMALL(IF(Datums=F$31,ROW(Datums)),ROW(1:1))-TabelrijBegin,4),\"\")","v":""}]
[null,null,{"$f":"IFERROR(INDEX(tblEvenementen[],SMALL(IF(Datums=C$31,ROW(Datums)),ROW(2:2))-TabelrijBegin,4),\"\")","v":""},null,null,{"$f":"IFERROR(INDEX(tblEvenementen[],SMALL(IF(Datums=F$31,ROW(Datums)),ROW(2:2))-TabelrijBegin,4),\"\")","v":""}]
[null,null,{"$f":"IFERROR(INDEX(tblEvenementen[],SMALL(IF(Datums=C$31,ROW(Datums)),ROW(3:3))-TabelrijBegin,4),\"\")","v":""},null,null,{"$f":"IFERROR(INDEX(tblEvenementen[],SMALL(IF(Datums=F$31,ROW(Datums)),ROW(3:3))-TabelrijBegin,4),\"\")","v":""}]
[null,null,{"$f":"IFERROR(INDEX(tblEvenementen[],SMALL(IF(Datums=C$31,ROW(Datums)),ROW(4:4))-TabelrijBegin,4),\"\")","v":""},null,null,{"$f":"IFERROR(INDEX(tblEvenementen[],SMALL(IF(Datums=F$31,ROW(Datums)),ROW(4:4))-TabelrijBegin,4),\"\")","v":""}]

{"sheet":"AFDRUKBARE VERSIE","index":2,"n_rows":35,"n_cols":21,"rows_kept":35,"merged":[[1,5,1,11],[30,8,34,20]]}
[]
[null,null,{"$f":"JaarWeergeven","v":2016},null,null,{"$f":"MaandWeergeven","v":"JULI"}]
[]
[null,null,"MA",null,null,"DI",null,null,"WO",null,null,"DO",null,null,"VR",null,null,"ZA",null,null,"ZO"]
[]
[null,null,{"$f":"AGENDA!C6","v":"2016-06-27"},{"$f":"AGENDA!D6","v":0},{"$f":"AGENDA!E6","v":0},{"$f":"AGENDA!F6","v":"2016-06-28"},{"$f":"AGENDA!G6","v":0},{"$f":"AGENDA!H6","v":0},{"$f":"AGENDA!I6","v":"2016-06-29"},{"$f":"AGENDA!J6","v":0},{"$f":"AGENDA!K6","v":0},{"$f":"AGENDA!L6","v":"2016-06-30"},{"$f":"AGENDA!M6","v":0},{"$f":"AGENDA!N6","v":0},{"$f":"AGENDA!O6","v":"2016-07-01"},{"$f":"AGENDA!P6","v":0},{"$f":"AGENDA!Q6","v":0},{"$f":"AGENDA!R6","v":"2016-07-02"},{"$f":"AGENDA!S6","v":0},{"$f":"AGENDA!T6","v":0},{"$f":"AGENDA!U6","v":"2016-07-03"}]
[null,null,{"$f":"AGENDA!C7","v":""},{"$f":"AGENDA!D7","v":0},{"$f":"AGENDA!E7","v":0},{"$f":"AGENDA!F7","v":""},{"$f":"AGENDA!G7","v":0},{"$f":"AGENDA!H7","v":0},{"$f":"AGENDA!I7","v":""},{"$f":"AGENDA!J7","v":0},{"$f":"AGENDA!K7","v":0},{"$f":"AGENDA!L7","v":""},{"$f":"AGENDA!M7","v":0},{"$f":"AGENDA!N7","v":0},{"$f":"AGENDA!O7","v":"Gemeenschapstuin"},{"$f":"AGENDA!P7","v":0},{"$f":"AGENDA!Q7","v":0},{"$f":"AGENDA!R7","v":"Gemeenschapstuin"},{"$f":"AGENDA!S7","v":0},{"$f":"AGENDA!T7","v":0},{"$f":"AGENDA!U7","v":"Filmavond in het park"}]
[null,null,{"$f":"AGENDA!C8","v":""},{"$f":"AGENDA!D8","v":"00:00:00"},{"$f":"AGENDA!E8","v":"00:00:00"},{"$f":"AGENDA!F8","v":""},{"$f":"AGENDA!G8","v":"00:00:00"},{"$f":"AGENDA!H8","v":"00:00:00"},{"$f":"AGENDA!I8","v":""},{"$f":"AGENDA!J8","v":"00:00:00"},{"$f":"AGENDA!K8","v":"00:00:00"},{"$f":"AGENDA!L8","v":""},{"$f":"AGENDA!M8","v":"00:00:00"},{"$f":"AGENDA!N8","v":"00:00:00"},{"$f":"AGENDA!O8","v":"Gemeenteraad"},{"$f":"AGENDA!P8","v":"00:00:00"},{"$f":"AGENDA!Q8","v":"00:00:00"},{"$f":"AGENDA!R8","v":""},{"$f":"AGENDA!S8","v":"00:00:00"},{"$f":"AGENDA!T8","v":"00:00:00"},{"$f":"AGENDA!U8","v":""}]
[null,null,{"$f":"AGENDA!C9","v":""},{"$f":"AGENDA!D9","v":0},{"$f":"AGENDA!E9","v":0},{"$f":"AGENDA!F9","v":""},{"$f":"AGENDA!G9","v":0},{"$f":"AGENDA!H9","v":0},{"$f":"AGENDA!I9","v":""},{"$f":"AGENDA!J9","v":0},{"$f":"AGENDA!K9","v":0},{"$f":"AGENDA!L9","v":""},{"$f":"AGENDA!M9","v":0},{"$f":"AGENDA!N9","v":0},{"$f":"AGENDA!O9","v":""},{"$f":"AGENDA!P9","v":0},{"$f":"AGENDA!Q9","v":0},{"$f":"AGENDA!R9","v":""},{"$f":"AGENDA!S9","v":0},{"$f":"AGENDA!T9","v":0},{"$f":"AGENDA!U9","v":""}]
[null,null,{"$f":"AGENDA!C10","v":""},{"$f":"AGENDA!D10","v":0},{"$f":"AGENDA!E10","v":0},{"$f":"AGENDA!F10","v":""},{"$f":"AGENDA!G10","v":0},{"$f":"AGENDA!H10","v":0},{"$f":"AGENDA!I10","v":""},{"$f":"AGENDA!J10","v":0},{"$f":"AGENDA!K10","v":0},{"$f":"AGENDA!L10","v":""},{"$f":"AGENDA!M10","v":0},{"$f":"AGENDA!N10","v":0},{"$f":"AGENDA!O10","v":""},{"$f":"AGENDA!P10","v":0},{"$f":"AGENDA!Q10","v":0},{"$f":"AGENDA!R10","v":""},{"$f":"AGENDA!S10","v":0},{"$f":"AGENDA!T10","v":0},{"$f":"AGENDA!U10","v":""}]
[null,null,{"$f":"AGENDA!C11","v":"2016-07-04"},{"$f":"AGENDA!D11","v":0},{"$f":"AGENDA!E11","v":0},{"$f":"AGENDA!F11","v":"2016-07-05"},{"$f":"AGENDA!G11","v":0},{"$f":"AGENDA!H11","v":0},{"$f":"AGENDA!I11","v":"2016-07-06"},{"$f":"AGENDA!J11","v":0},{"$f":"AGENDA!K11","v":0},{"$f":"AGENDA!L11","v":"2016-07-07"},{"$f":"AGENDA!M11","v":0},{"$f":"AGENDA!N11","v":0},{"$f":"AGENDA!O11","v":"2016-07-08"},{"$f":"AGENDA!P11","v":0},{"$f":"AGENDA!Q11","v":0},{"$f":"AGENDA!R11","v":"2016-07-09"},{"$f":"AGENDA!S11","v":0},{"$f":"AGENDA!T11","v":0},{"$f":"AGENDA!U11","v":"2016-07-10"}]
[null,null,{"$f":"AGENDA!C12","v":""},{"$f":"AGENDA!D12","v":0},{"$f":"AGENDA!E12","v":0},{"$f":"AGENDA!F12","v":""},{"$f":"AGENDA!G12","v":0},{"$f":"AGENDA!H12","v":0},{"$f":"AGENDA!I12","v":""},{"$f":"AGENDA!J12","v":0},{"$f":"AGENDA!K12","v":0},{"$f":"AGENDA!L12","v":""},{"$f":"AGENDA!M12","v":0},{"$f":"AGENDA!N12","v":0},{"$f":"AGENDA!O12","v":"Gemeenteraad"},{"$f":"AGENDA!P12","v":0},{"$f":"AGENDA!Q12","v":0},{"$f":"AGENDA!R12","v":""},{"$f":"AGENDA!S12","v":0},{"$f":"AGENDA!T12","v":0},{"$f":"AGENDA!U12","v":""}]
[null,null,{"$f":"AGENDA!C13","v":""},{"$f":"AGENDA!D13","v":0},{"$f":"AGENDA!E13","v":0},{"$f":"AGENDA!F13","v":""},{"$f":"AGENDA!G13","v":0},{"$f":"AGENDA!H13","v":0},{"$f":"AGENDA!I13","v":""},{"$f":"AGENDA!J13","v":0},{"$f":"AGENDA!K13","v":0},{"$f":"AGENDA!L13","v":""},{"$f":"AGENDA!M13","v":0},{"$f":"AGENDA!N13","v":0},{"$f":"AGENDA!O13","v":""},{"$f":"AGENDA!P13","v":0},{"$f":"AGENDA!Q13","v":0},{"$f":"AGENDA!R13","v":""},{"$f":"AGENDA!S13","v":0},{"$f":"AGENDA!T13","v":0},{"$f":"AGENDA!U13","v":""}]
[null,null,{"$f":"AGENDA!C14","v":""},{"$f":"AGENDA!D14","v":0},{"$f":"AGENDA!E14","v":0},{"$f":"AGENDA!F14","v":""},{"$f":"AGENDA!G14","v":0},{"$f":"AGENDA!H14","v":0},{"$f":"AGENDA!I14","v":""},{"$f":"AGENDA!J14","v":0},{"$f":"AGENDA!K14","v":0},{"$f":"AGENDA!L14","v":""},{"$f":"AGENDA!M14","v":0},{"$f":"AGENDA!N14","v":0},{"$f":"AGENDA!O14","v":""},{"$f":"AGENDA!P14","v":0},{"$f":"AGENDA!Q14","v":0},{"$f":"AGENDA!R14","v":""},{"$f":"AGENDA!S14","v":0},{"$f":"AGENDA!T14","v":0},{"$f":"AGENDA!U14","v":""}]
[null,null,{"$f":"AGENDA!C15","v":""},{"$f":"AGENDA!D15","v":0},{"$f":"AGENDA!E15","v":0},{"$f":"AGENDA!F15","v":""},{"$f":"AGENDA!G15","v":0},{"$f":"AGENDA!H15","v":0},{"$f":"AGENDA!I15","v":""},{"$f":"AGENDA!J15","v":0},{"$f":"AGENDA!K15","v":0},{"$f":"AGENDA!L15","v":""},{"$f":"AGENDA!M15","v":0},{"$f":"AGENDA!N15","v":0},{"$f":"AGENDA!O15","v":""},{"$f":"AGENDA!P15","v":0},{"$f":"AGENDA!Q15","v":0},{"$f":"AGENDA!R15","v":""},{"$f":"AGENDA!S15","v":0},{"$f":"AGENDA!T15","v":0},{"$f":"AGENDA!U15","v":""}]
[null,null,{"$f":"AGENDA!C16","v":"2016-07-11"},{"$f":"AGENDA!D16","v":0},{"$f":"AGENDA!E16","v":0},{"$f":"AGENDA!F16","v":"2016-07-12"},{"$f":"AGENDA!G16","v":0},{"$f":"AGENDA!H16","v":0},{"$f":"AGENDA!I16","v":"2016-07-13"},{"$f":"AGENDA!J16","v":0},{"$f":"AGENDA!K16","v":0},{"$f":"AGENDA!L16","v":"2016-07-14"},{"$f":"AGENDA!M16","v":0},{"$f":"AGENDA!N16","v":0},{"$f":"AGENDA!O16","v":"2016-07-15"},{"$f":"AGENDA!P16","v":0},{"$f":"AGENDA!Q16","v":0},{"$f":"AGENDA!R16","v":"2016-07-16"},{"$f":"AGENDA!S16","v":0},{"$f":"AGENDA!T16","v":0},{"$f":"AGENDA!U16","v":"2016-07-17"}]
[null,null,{"$f":"AGENDA!C17","v":"Kamer van koophandel Lunch"},{"$f":"AGENDA!D17","v":0},{"$f":"AGENDA!E17","v":0},{"$f":"AGENDA!F17","v":"Antiekshow"},{"$f":"AGENDA!G17","v":0},{"$f":"AGENDA!H17","v":0},{"$f":"AGENDA!I17","v":""},{"$f":"AGENDA!J17","v":0},{"$f":"AGENDA!K17","v":0},{"$f":"AGENDA!L17","v":"Gemeenschapsworkshop"},{"$f":"AGENDA!M17","v":0},{"$f":"AGENDA!N17","v":0},{"$f":"AGENDA!O17","v":"Gemeenteraad"},{"$f":"AGENDA!P17","v":0},{"$f":"AGENDA!Q17","v":0},{"$f":"AGENDA!R17","v":""},{"$f":"AGENDA!S17","v":0},{"$f":"AGENDA!T17","v":0},{"$f":"AGENDA!U17","v":""}]
[null,null,{"$f":"AGENDA!C18","v":""},{"$f":"AGENDA!D18","v":0},{"$f":"AGENDA!E18","v":0},{"$f":"AGENDA!F18","v":""},{"$f":"AGENDA!G18","v":0},{"$f":"AGENDA!H18","v":0},{"$f":"AGENDA!I18","v":""},{"$f":"AGENDA!J18","v":0},{"$f":"AGENDA!K18","v":0},{"$f":"AGENDA!L18","v":""},{"$f":"AGENDA!M18","v":0},{"$f":"AGENDA!N18","v":0},{"$f":"AGENDA!O18","v":""},{"$f":"AGENDA!P18","v":0},{"$f":"AGENDA!Q18","v":0},{"$f":"AGENDA!R18","v":""},{"$f":"AGENDA!S18","v":0},{"$f":"AGENDA!T18","v":0},{"$f":"AGENDA!U18","v":""}]
[null,null,{"$f":"AGENDA!C19","v":""},{"$f":"AGENDA!D19","v":0},{"$f":"AGENDA!E19","v":0},{"$f":"AGENDA!F19","v":""},{"$f":"AGENDA!G19","v":0},{"$f":"AGENDA!H19","v":0},{"$f":"AGENDA!I19","v":""},{"$f":"AGENDA!J19","v":0},{"$f":"AGENDA!K19","v":0},{"$f":"AGENDA!L19","v":""},{"$f":"AGENDA!M19","v":0},{"$f":"AGENDA!N19","v":0},{"$f":"AGENDA!O19","v":""},{"$f":"AGENDA!P19","v":0},{"$f":"AGENDA!Q19","v":0},{"$f":"AGENDA!R19","v":""},{"$f":"AGENDA!S19","v":0},{"$f":"AGENDA!T19","v":0},{"$f":"AGENDA!U19","v":""}]
[null,null,{"$f":"AGENDA!C20","v":""},{"$f":"AGENDA!D20","v":0},{"$f":"AGENDA!E20","v":0},{"$f":"AGENDA!F20","v":""},{"$f":"AGENDA!G20","v":0},{"$f":"AGENDA!H20","v":0},{"$f":"AGENDA!I20","v":""},{"$f":"AGENDA!J20","v":0},{"$f":"AGENDA!K20","v":0},{"$f":"AGENDA!L20","v":""},{"$f":"AGENDA!M20","v":0},{"$f":"AGENDA!N20","v":0},{"$f":"AGENDA!O20","v":""},{"$f":"AGENDA!P20","v":0},{"$f":"AGENDA!Q20","v":0},{"$f":"AGENDA!R20","v":""},{"$f":"AGENDA!S20","v":0},{"$f":"AGENDA!T20","v":0},{"$f":"AGENDA!U20","v":""}]
[null,null,{"$f":"AGENDA!C21","v":"2016-07-18"},{"$f":"AGENDA!D21","v":0},{"$f":"AGENDA!E21","v":0},{"$f":"AGENDA!F21","v":"2016-07-19"},{"$f":"AGENDA!G21","v":0},{"$f":"AGENDA!H21","v":0},{"$f":"AGENDA!I21","v":"2016-07-20"},{"$f":"AGENDA!J21","v":0},{"$f":"AGENDA!K21","v":0},{"$f":"AGENDA!L21","v":"2016-07-21"},{"$f":"AGENDA!M21","v":0},{"$f":"AGENDA!N21","v":0},{"$f":"AGENDA!O21","v":"2016-07-22"},{"$f":"AGENDA!P21","v":0},{"$f":"AGENDA!Q21","v":0},{"$f":"AGENDA!R21","v":"2016-07-23"},{"$f":"AGENDA!S21","v":0},{"$f":"AGENDA!T21","v":0},{"$f":"AGENDA!U21","v":"2016-07-24"}]
[null,null,{"$f":"AGENDA!C22","v":""},{"$f":"AGENDA!D22","v":0},{"$f":"AGENDA!E22","v":0},{"$f":"AGENDA!F22","v":"Workshop voor strategische planning"},{"$f":"AGENDA!G22","v":0},{"$f":"AGENDA!H22","v":0},{"$f":"AGENDA!I22","v":"Park opruimen"},{"$f":"AGENDA!J22","v":0},{"$f":"AGENDA!K22","v":0},{"$f":"AGENDA!L22","v":""},{"$f":"AGENDA!M22","v":0},{"$f":"AGENDA!N22","v":0},{"$f":"AGENDA!O22","v":"Gemeenteraad"},{"$f":"AGENDA!P22","v":0},{"$f":"AGENDA!Q22","v":0},{"$f":"AGENDA!R22","v":""},{"$f":"AGENDA!S22","v":0},{"$f":"AGENDA!T22","v":0},{"$f":"AGENDA!U22","v":""}]
[null,null,{"$f":"AGENDA!C23","v":""},{"$f":"AGENDA!D23","v":0},{"$f":"AGENDA!E23","v":0},{"$f":"AGENDA!F23","v":""},{"$f":"AGENDA!G23","v":0},{"$f":"AGENDA!H23","v":0},{"$f":"AGENDA!I23","v":""},{"$f":"AGENDA!J23","v":0},{"$f":"AGENDA!K23","v":0},{"$f":"AGENDA!L23","v":""},{"$f":"AGENDA!M23","v":0},{"$f":"AGENDA!N23","v":0},{"$f":"AGENDA!O23","v":""},{"$f":"AGENDA!P23","v":0},{"$f":"AGENDA!Q23","v":0},{"$f":"AGENDA!R23","v":""},{"$f":"AGENDA!S23","v":0},{"$f":"AGENDA!T23","v":0},{"$f":"AGENDA!U23","v":""}]
[null,null,{"$f":"AGENDA!C24","v":""},{"$f":"AGENDA!D24","v":0},{"$f":"AGENDA!E24","v":0},{"$f":"AGENDA!F24","v":""},{"$f":"AGENDA!G24","v":0},{"$f":"AGENDA!H24","v":0},{"$f":"AGENDA!I24","v":""},{"$f":"AGENDA!J24","v":0},{"$f":"AGENDA!K24","v":0},{"$f":"AGENDA!L24","v":""},{"$f":"AGENDA!M24","v":0},{"$f":"AGENDA!N24","v":0},{"$f":"AGENDA!O24","v":""},{"$f":"AGENDA!P24","v":0},{"$f":"AGENDA!Q24","v":0},{"$f":"AGENDA!R24","v":""},{"$f":"AGENDA!S24","v":0},{"$f":"AGENDA!T24","v":0},{"$f":"AGENDA!U24","v":""}]
[null,null,{"$f":"AGENDA!C25","v":""},{"$f":"AGENDA!D25","v":0},{"$f":"AGENDA!E25","v":0},{"$f":"AGENDA!F25","v":""},{"$f":"AGENDA!G25","v":0},{"$f":"AGENDA!H25","v":0},{"$f":"AGENDA!I25","v":""},{"$f":"AGENDA!J25","v":0},{"$f":"AGENDA!K25","v":0},{"$f":"AGENDA!L25","v":""},{"$f":"AGENDA!M25","v":0},{"$f":"AGENDA!N25","v":0},{"$f":"AGENDA!O25","v":""},{"$f":"AGENDA!P25","v":0},{"$f":"AGENDA!Q25","v":0},{"$f":"AGENDA!R25","v":""},{"$f":"AGENDA!S25","v":0},{"$f":"AGENDA!T25","v":0},{"$f":"AGENDA!U25","v":""}]
[null,null,{"$f":"AGENDA!C26","v":"2016-07-25"},{"$f":"AGENDA!D26","v":0},{"$f":"AGENDA!E26","v":0},{"$f":"AGENDA!F26","v":"2016-07-26"},{"$f":"AGENDA!G26","v":0},{"$f":"AGENDA!H26","v":0},{"$f":"AGENDA!I26","v":"2016-07-27"},{"$f":"AGENDA!J26","v":0},{"$f":"AGENDA!K26","v":0},{"$f":"AGENDA!L26","v":"2016-07-28"},{"$f":"AGENDA!M26","v":0},{"$f":"AGENDA!N26","v":0},{"$f":"AGENDA!O26","v":"2016-07-29"},{"$f":"AGENDA!P26","v":0},{"$f":"AGENDA!Q26","v":0},{"$f":"AGENDA!R26","v":"2016-07-30"},{"$f":"AGENDA!S26","v":0},{"$f":"AGENDA!T26","v":0},{"$f":"AGENDA!U26","v":"2016-07-31"}]
[null,null,{"$f":"AGENDA!C27","v":""},{"$f":"AGENDA!D27","v":0},{"$f":"AGENDA!E27","v":0},{"$f":"AGENDA!F27","v":"Stadswandeling"},{"$f":"AGENDA!G27","v":0},{"$f":"AGENDA!H27","v":0},{"$f":"AGENDA!I27","v":""},{"$f":"AGENDA!J27","v":0},{"$f":"AGENDA!K27","v":0},{"$f":"AGENDA!L27","v":""},{"$f":"AGENDA!M27","v":0},{"$f":"AGENDA!N27","v":0},{"$f":"AGENDA!O27","v":"Gemeenteraad"},{"$f":"AGENDA!P27","v":0},{"$f":"AGENDA!Q27","v":0},{"$f":"AGENDA!R27","v":""},{"$f":"AGENDA!S27","v":0},{"$f":"AGENDA!T27","v":0},{"$f":"AGENDA!U27","v":""}]
[null,null,{"$f":"AGENDA!C28","v":""},{"$f":"AGENDA!D28","v":0},{"$f":"AGENDA!E28","v":0},{"$f":"AGENDA!F28","v":"Kroegentocht"},{"$f":"AGENDA!G28","v":0},{"$f":"AGENDA!H28","v":0},{"$f":"AGENDA!I28","v":""},{"$f":"AGENDA!J28","v":0},{"$f":"AGENDA!K28","v":0},{"$f":"AGENDA!L28","v":""},{"$f":"AGENDA!M28","v":0},{"$f":"AGENDA!N28","v":0},{"$f":"AGENDA!O28","v":""},{"$f":"AGENDA!P28","v":0},{"$f":"AGENDA!Q28","v":0},{"$f":"AGENDA!R28","v":""},{"$f":"AGENDA!S28","v":0},{"$f":"AGENDA!T28","v":0},{"$f":"AGENDA!U28","v":""}]
[null,null,{"$f":"AGENDA!C29","v":""},{"$f":"AGENDA!D29","v":0},{"$f":"AGENDA!E29","v":0},{"$f":"AGENDA!F29","v":""},{"$f":"AGENDA!G29","v":0},{"$f":"AGENDA!H29","v":0},{"$f":"AGENDA!I29","v":""},{"$f":"AGENDA!J29","v":0},{"$f":"AGENDA!K29","v":0},{"$f":"AGENDA!L29","v":""},{"$f":"AGENDA!M29","v":0},{"$f":"AGENDA!N29","v":0},{"$f":"AGENDA!O29","v":""},{"$f":"AGENDA!P29","v":0},{"$f":"AGENDA!Q29","v":0},{"$f":"AGENDA!R29","v":""},{"$f":"AGENDA!S29","v":0},{"$f":"AGENDA!T29","v":0},{"$f":"AGENDA!U29","v":""}]
[null,null,{"$f":"AGENDA!C30","v":""},{"$f":"AGENDA!D30","v":0},{"$f":"AGENDA!E30","v":0},{"$f":"AGENDA!F30","v":""},{"$f":"AGENDA!G30","v":0},{"$f":"AGENDA!H30","v":0},{"$f":"AGENDA!I30","v":""},{"$f":"AGENDA!J30","v":0},{"$f":"AGENDA!K30","v":0},{"$f":"AGENDA!L30","v":""},{"$f":"AGENDA!M30","v":0},{"$f":"AGENDA!N30","v":0},{"$f":"AGENDA!O30","v":""},{"$f":"AGENDA!P30","v":0},{"$f":"AGENDA!Q30","v":0},{"$f":"AGENDA!R30","v":""},{"$f":"AGENDA!S30","v":0},{"$f":"AGENDA!T30","v":0},{"$f":"AGENDA!U30","v":""}]
[null,null,{"$f":"AGENDA!C31","v":"2016-08-01"},{"$f":"AGENDA!D31","v":0},{"$f":"AGENDA!E31","v":0},{"$f":"AGENDA!F31","v":"2016-08-02"},null,null,{"$f":"AGENDA!I31","v":"NOTITIES:"}]
[null,null,{"$f":"AGENDA!C32","v":""},{"$f":"AGENDA!D32","v":0},{"$f":"AGENDA!E32","v":0},{"$f":"AGENDA!F32","v":""}]
[null,null,{"$f":"AGENDA!C33","v":""},{"$f":"AGENDA!D33","v":0},{"$f":"AGENDA!E33","v":0},{"$f":"AGENDA!F33","v":""}]
[null,null,{"$f":"AGENDA!C34","v":""},{"$f":"AGENDA!D34","v":0},{"$f":"AGENDA!E34","v":0},{"$f":"AGENDA!F34","v":""}]
[null,null,{"$f":"AGENDA!C35","v":""},{"$f":"AGENDA!D35","v":0},{"$f":"AGENDA!E35","v":0},{"$f":"AGENDA!F35","v":""}]

{"sheet":"BEHEERDER","index":3,"n_rows":14,"n_cols":3,"rows_kept":14,"hidden":true}
[]
[null,"MAAND","NUMMER"]
[null,"JANUARI",1]
[null,"FEBRUARI",2]
[null,"MAART",3]
[null,"APRIL",4]
[null,"MEI",5]
[null,"JUNI",6]
[null,"JULI",7]
[null,"AUGUSTUS",8]
[null,"SEPTEMBER",9]
[null,"OKTOBER",10]
[null,"NOVEMBER",11]
[null,"DECEMBER",12]